[Event "Titled Tuesday Blitz August 09 Early 2022"]
[White "Kostiukov, Alexandr"]
[Black "Sammed Jaykumar, Shete"]
[WhiteFideId "14108100"]
[BlackFideId "5073421"]
[WhiteElo "2202"]
[BlackElo "2239"]
[Result "0-1"]
[Round "02"]
[TimeControl "180+1"]
[Date "2022.08.09"]
[WhiteClock "0:00:44"]
[BlackClock "0:01:18"]

1. g3 {[%clk 0:02:53]}  e5 {[%clk 0:02:59]} 2. Bg2 {[%clk 0:02:54]}  Nf6 {[%clk 0:02:54]} 3. c4 {[%clk 0:02:54]}  c6 {[%clk 0:02:54]} 4. Nf3 {[%clk 0:02:50]}  e4 {[%clk 0:02:54]} 5. Nd4 {[%clk 0:02:50]}  Qb6 {[%clk 0:02:52]} 6. Nb3 {[%clk 0:02:45]}  d5 {[%clk 0:02:51]} 7. cxd5 {[%clk 0:02:44]}  cxd5 {[%clk 0:02:52]} 8. O-O {[%clk 0:02:40]}  h5 {[%clk 0:02:31]} 9. h3 {[%clk 0:02:20]}  h4 {[%clk 0:02:24]} 10. g4 {[%clk 0:02:20]}  Nxg4 {[%clk 0:02:02]} 11. hxg4 {[%clk 0:02:19]}  h3 {[%clk 0:02:02]} 12. Bh1 {[%clk 0:02:17]}  h2+ {[%clk 0:02:02]} 13. Kg2 {[%clk 0:02:18]}  Bxg4 {[%clk 0:01:58]} 14. f3 {[%clk 0:01:52]}  Bh3+ {[%clk 0:01:43]} 15. Kg3 {[%clk 0:01:49]}  Bxf1 {[%clk 0:01:36]} 16. Qxf1 {[%clk 0:01:49]}  Qg1+ {[%clk 0:01:28]} 17. Qg2 {[%clk 0:01:44]}  Rh6 {[%clk 0:01:24]} 18. Kf4 {[%clk 0:00:46]}  Bd6+ {[%clk 0:01:21]} 19. Kf5 {[%clk 0:00:44]}  Rf6+ {[%clk 0:01:18]} 0-1


[Site "https://www.chess.com"]

[Event "Titled Tuesday Blitz August 09 Early 2022"]
[White "Kukreja, Sankalp"]
[Black "Papasimakopoulos, Alexandros"]
[WhiteFideId "45027676"]
[BlackFideId "4244125"]
[WhiteElo "2004"]
[BlackElo "2357"]
[Result "0-1"]
[Round "02"]
[TimeControl "180+1"]
[Date "2022.08.09"]
[WhiteClock "0:01:33"]
[BlackClock "0:02:17"]

1. e4 {[%clk 0:03:00]}  e6 {[%clk 0:02:58]} 2. d4 {[%clk 0:02:59]}  d5 {[%clk 0:02:57]} 3. e5 {[%clk 0:02:55]}  b6 {[%clk 0:02:54]} 4. Nf3 {[%clk 0:02:53]}  Ne7 {[%clk 0:02:54]} 5. Bd3 {[%clk 0:02:49]}  Ba6 {[%clk 0:02:52]} 6. O-O {[%clk 0:02:45]}  Bxd3 {[%clk 0:02:52]} 7. Qxd3 {[%clk 0:02:46]}  c5 {[%clk 0:02:52]} 8. c3 {[%clk 0:02:46]}  Nbc6 {[%clk 0:02:53]} 9. Be3 {[%clk 0:02:44]}  Nf5 {[%clk 0:02:52]} 10. a3 {[%clk 0:02:42]}  c4 {[%clk 0:02:51]} 11. Qc2 {[%clk 0:02:40]}  Na5 {[%clk 0:02:51]} 12. Nbd2 {[%clk 0:02:40]}  Be7 {[%clk 0:02:50]} 13. Bf4 {[%clk 0:02:39]}  g5 {[%clk 0:02:48]} 14. Be3 {[%clk 0:02:34]}  g4 {[%clk 0:02:48]} 15. Ne1 {[%clk 0:02:35]}  h5 {[%clk 0:02:48]} 16. Bf4 {[%clk 0:02:31]}  Bg5 {[%clk 0:02:48]} 17. Bxg5 {[%clk 0:02:30]}  Qxg5 {[%clk 0:02:49]} 18. f4 {[%clk 0:02:31]}  gxf3 {[%clk 0:02:46]} 19. Ndxf3 {[%clk 0:02:30]}  Qg4 {[%clk 0:02:43]} 20. Qf2 {[%clk 0:02:08]}  Nb3 {[%clk 0:02:43]} 21. Rd1 {[%clk 0:02:08]}  O-O-O {[%clk 0:02:41]} 22. Nc2 {[%clk 0:02:07]}  Rdg8 {[%clk 0:02:39]} 23. h3 {[%clk 0:02:08]}  Qxh3 {[%clk 0:02:38]} 24. Rde1 {[%clk 0:02:06]}  Rg3 {[%clk 0:02:31]} 25. Ne3 {[%clk 0:02:04]}  Rhg8 {[%clk 0:02:31]} 26. Nh4 {[%clk 0:01:41]}  Nxh4 {[%clk 0:02:17]} 27. Qxf7 {[%clk 0:01:33]}  Rxg2+ {[%clk 0:02:17]} 0-1


[Site "https://www.chess.com"]

[Event "Titled Tuesday Blitz August 09 Early 2022"]
[White "Large, Peter G"]
[Black "Belozerov, Andrei"]
[WhiteFideId "400866"]
[BlackFideId "4120213"]
[WhiteElo "2064"]
[BlackElo "2320"]
[Result "1-0"]
[Round "02"]
[TimeControl "180+1"]
[Date "2022.08.09"]
[WhiteClock "0:00:07"]
[BlackClock "0:00:19"]

1. Nf3 {[%clk 0:03:00]}  d5 {[%clk 0:02:59]} 2. b3 {[%clk 0:03:01]}  Bg4 {[%clk 0:02:58]} 3. Bb2 {[%clk 0:03:00]}  Bxf3 {[%clk 0:02:57]} 4. exf3 {[%clk 0:03:00]}  e6 {[%clk 0:02:57]} 5. f4 {[%clk 0:03:00]}  Nf6 {[%clk 0:02:56]} 6. d3 {[%clk 0:02:58]}  g6 {[%clk 0:02:55]} 7. Nd2 {[%clk 0:02:58]}  Bg7 {[%clk 0:02:55]} 8. g3 {[%clk 0:02:57]}  O-O {[%clk 0:02:54]} 9. Bg2 {[%clk 0:02:58]}  c5 {[%clk 0:02:54]} 10. O-O {[%clk 0:02:58]}  Nc6 {[%clk 0:02:54]} 11. Re1 {[%clk 0:02:58]}  Nh5 {[%clk 0:02:53]} 12. Bxg7 {[%clk 0:02:54]}  Nxg7 {[%clk 0:02:53]} 13. Nf3 {[%clk 0:02:52]}  Qa5 {[%clk 0:02:50]} 14. Ne5 {[%clk 0:02:46]}  Nxe5 {[%clk 0:02:48]} 15. fxe5 {[%clk 0:02:46]}  Qc3 {[%clk 0:02:44]} 16. a3 {[%clk 0:02:41]}  Rad8 {[%clk 0:02:40]} 17. Rb1 {[%clk 0:02:40]}  b5 {[%clk 0:02:28]} 18. Bh3 {[%clk 0:02:35]}  a5 {[%clk 0:02:24]} 19. Qc1 {[%clk 0:02:29]}  f6 {[%clk 0:02:14]} 20. exf6 {[%clk 0:02:24]}  Rxf6 {[%clk 0:02:13]} 21. f4 {[%clk 0:02:21]}  Re8 {[%clk 0:01:59]} 22. Qb2 {[%clk 0:02:14]}  Qxb2 {[%clk 0:01:56]} 23. Rxb2 {[%clk 0:02:14]}  h6 {[%clk 0:01:49]} 24. Re5 {[%clk 0:02:08]}  Kf7 {[%clk 0:01:46]} 25. c4 {[%clk 0:02:04]}  b4 {[%clk 0:01:12]} 26. axb4 {[%clk 0:02:02]}  axb4 {[%clk 0:01:12]} 27. Ra2 {[%clk 0:01:59]}  Nf5 {[%clk 0:01:05]} 28. Ra7+ {[%clk 0:01:32]}  Re7 {[%clk 0:01:05]} 29. Rxe7+ {[%clk 0:01:26]}  Nxe7 {[%clk 0:01:04]} 30. cxd5 {[%clk 0:00:29]}  exd5 {[%clk 0:01:03]} 31. Bg2 {[%clk 0:00:29]}  Rd6 {[%clk 0:01:03]} 32. g4 {[%clk 0:00:25]}  Kf6 {[%clk 0:01:01]} 33. h4 {[%clk 0:00:23]}  h5 {[%clk 0:00:43]} 34. g5+ {[%clk 0:00:20]}  Kf7 {[%clk 0:00:41]} 35. Kf2 {[%clk 0:00:19]}  Ke8 {[%clk 0:00:35]} 36. Ke2 {[%clk 0:00:17]}  Kd7 {[%clk 0:00:30]} 37. Bh3+ {[%clk 0:00:15]}  Ke8 {[%clk 0:00:30]} 38. Re6 {[%clk 0:00:14]}  Rxe6+ {[%clk 0:00:26]} 39. Bxe6 {[%clk 0:00:14]}  Nf5 {[%clk 0:00:25]} 40. Bxf5 {[%clk 0:00:12]}  gxf5 {[%clk 0:00:24]} 41. d4 {[%clk 0:00:09]}  c4 {[%clk 0:00:24]} 42. bxc4 {[%clk 0:00:09]}  dxc4 {[%clk 0:00:24]} 43. d5 {[%clk 0:00:08]}  Kf7 {[%clk 0:00:20]} 44. Kd2 {[%clk 0:00:08]}  Ke7 {[%clk 0:00:19]} 45. g6 {[%clk 0:00:07]}  Kf6 {[%clk 0:00:19]} 46. d6 {[%clk 0:00:07]} 1-0


[Site "https://www.chess.com"]

[Event "Titled Tuesday Blitz August 09 Early 2022"]
[White "Le, Tuan Minh"]
[Black "Hosseinzadeh, Nima"]
[WhiteFideId "12401153"]
[BlackFideId "12505323"]
[WhiteElo "2530"]
[BlackElo "2045"]
[Result "1-0"]
[Round "02"]
[TimeControl "180+1"]
[Date "2022.08.09"]
[WhiteClock "0:00:05"]
[BlackClock "0:00:01"]

1. d4 {[%clk 0:03:00]}  Nf6 {[%clk 0:02:59]} 2. Nf3 {[%clk 0:02:50]}  e6 {[%clk 0:03:00]} 3. Bf4 {[%clk 0:02:45]}  c5 {[%clk 0:02:59]} 4. c3 {[%clk 0:02:44]}  Qb6 {[%clk 0:02:52]} 5. Qc2 {[%clk 0:02:38]}  cxd4 {[%clk 0:02:47]} 6. cxd4 {[%clk 0:02:38]}  Nc6 {[%clk 0:02:48]} 7. e3 {[%clk 0:02:38]}  Bb4+ {[%clk 0:02:41]} 8. Nbd2 {[%clk 0:02:36]}  O-O {[%clk 0:02:39]} 9. a3 {[%clk 0:02:32]}  Be7 {[%clk 0:02:38]} 10. Bd3 {[%clk 0:02:31]}  d5 {[%clk 0:02:35]} 11. Ne5 {[%clk 0:02:31]}  h6 {[%clk 0:02:33]} 12. O-O {[%clk 0:02:28]}  Nxe5 {[%clk 0:02:30]} 13. Bxe5 {[%clk 0:02:29]}  Bd7 {[%clk 0:02:30]} 14. Bc7 {[%clk 0:02:06]}  Qc6 {[%clk 0:02:26]} 15. Rac1 {[%clk 0:02:07]}  Qxc2 {[%clk 0:02:21]} 16. Rxc2 {[%clk 0:02:07]}  Rfc8 {[%clk 0:02:20]} 17. Rfc1 {[%clk 0:02:07]}  Ne8 {[%clk 0:02:19]} 18. Nb3 {[%clk 0:01:53]}  Ba4 {[%clk 0:02:17]} 19. Bf4 {[%clk 0:01:21]}  Rxc2 {[%clk 0:02:09]} 20. Bxc2 {[%clk 0:01:22]}  Rc8 {[%clk 0:02:08]} 21. Na1 {[%clk 0:01:14]}  Bd6 {[%clk 0:02:00]} 22. Bh7+ {[%clk 0:01:10]}  Kxh7 {[%clk 0:01:54]} 23. Rxc8 {[%clk 0:01:11]}  Bxf4 {[%clk 0:01:54]} 24. exf4 {[%clk 0:01:09]}  Nd6 {[%clk 0:01:53]} 25. Rc7 {[%clk 0:01:09]}  Kg6 {[%clk 0:01:52]} 26. f3 {[%clk 0:01:01]}  Bc6 {[%clk 0:01:50]} 27. Nc2 {[%clk 0:00:58]}  Nc4 {[%clk 0:01:46]} 28. b3 {[%clk 0:00:53]}  Nd6 {[%clk 0:01:34]} 29. a4 {[%clk 0:00:49]}  Kf6 {[%clk 0:01:06]} 30. Kf2 {[%clk 0:00:46]}  Ne8 {[%clk 0:00:54]} 31. Rc8 {[%clk 0:00:45]}  Ke7 {[%clk 0:00:55]} 32. Nb4 {[%clk 0:00:27]}  Kd7 {[%clk 0:00:47]} 33. Ra8 {[%clk 0:00:26]}  Nd6 {[%clk 0:00:32]} 34. Rg8 {[%clk 0:00:08]}  g6 {[%clk 0:00:30]} 35. g4 {[%clk 0:00:08]}  Ke7 {[%clk 0:00:20]} 36. h4 {[%clk 0:00:07]}  Be8 {[%clk 0:00:15]} 37. Rh8 {[%clk 0:00:07]}  Kf6 {[%clk 0:00:13]} 38. Rg8 {[%clk 0:00:06]}  Ke7 {[%clk 0:00:07]} 39. Nd3 {[%clk 0:00:07]}  f6 {[%clk 0:00:05]} 40. Rg7+ {[%clk 0:00:07]}  Bf7 {[%clk 0:00:05]} 41. Rh7 {[%clk 0:00:07]}  Kf8 {[%clk 0:00:04]} 42. h5 {[%clk 0:00:05]}  gxh5 {[%clk 0:00:03]} 43. Rxh6 {[%clk 0:00:05]}  Kg7 {[%clk 0:00:03]} 44. g5 {[%clk 0:00:06]}  fxg5 {[%clk 0:00:02]} 45. fxg5 {[%clk 0:00:07]}  Nf5 {[%clk 0:00:02]} 46. Rf6 {[%clk 0:00:07]}  Nxd4 {[%clk 0:00:03]} 47. Ne5 {[%clk 0:00:08]}  Bg8 {[%clk 0:00:02]} 48. Rg6+ {[%clk 0:00:08]}  Kf8 {[%clk 0:00:02]} 49. Rf6+ {[%clk 0:00:08]}  Kg7 {[%clk 0:00:02]} 50. b4 {[%clk 0:00:05]}  h4 {[%clk 0:00:02]} 51. f4 {[%clk 0:00:04]}  h3 {[%clk 0:00:01]} 52. Rh6 {[%clk 0:00:05]} 1-0


[Site "https://www.chess.com"]

[Event "Titled Tuesday Blitz August 09 Early 2022"]
[White "Lehtosaari, Mauri"]
[Black "Legenia, Artem"]
[WhiteFideId "501999"]
[BlackFideId "14136945"]
[WhiteElo "2516"]
[BlackElo "1936"]
[Result "1-0"]
[Round "02"]
[TimeControl "180+1"]
[Date "2022.08.09"]
[WhiteClock "0:00:09"]
[BlackClock "0:00:02"]

1. d4 {[%clk 0:03:00]}  d5 {[%clk 0:02:51]} 2. Nf3 {[%clk 0:03:00]}  Nf6 {[%clk 0:02:50]} 3. Bg5 {[%clk 0:02:59]}  e6 {[%clk 0:02:46]} 4. e3 {[%clk 0:02:58]}  c5 {[%clk 0:02:45]} 5. c3 {[%clk 0:02:58]}  Nc6 {[%clk 0:02:45]} 6. Nbd2 {[%clk 0:02:58]}  h6 {[%clk 0:02:44]} 7. Bh4 {[%clk 0:02:57]}  Bd6 {[%clk 0:02:44]} 8. e4 {[%clk 0:02:49]}  g5 {[%clk 0:02:36]} 9. e5 {[%clk 0:02:28]}  gxh4 {[%clk 0:02:23]} 10. exd6 {[%clk 0:02:23]}  Qxd6 {[%clk 0:02:18]} 11. Bb5 {[%clk 0:02:17]}  cxd4 {[%clk 0:02:13]} 12. cxd4 {[%clk 0:02:08]}  h3 {[%clk 0:01:56]} 13. g3 {[%clk 0:02:06]}  Bd7 {[%clk 0:01:51]} 14. O-O {[%clk 0:01:46]}  a6 {[%clk 0:01:40]} 15. Bxc6 {[%clk 0:01:42]}  Bxc6 {[%clk 0:01:37]} 16. Ne5 {[%clk 0:01:43]}  Bb5 {[%clk 0:01:20]} 17. Re1 {[%clk 0:01:37]}  a5 {[%clk 0:01:21]} 18. Qf3 {[%clk 0:01:22]}  Ke7 {[%clk 0:01:21]} 19. Nb3 {[%clk 0:01:13]}  b6 {[%clk 0:01:18]} 20. Rac1 {[%clk 0:01:12]}  Rac8 {[%clk 0:01:16]} 21. Qf4 {[%clk 0:00:59]}  a4 {[%clk 0:00:53]} 22. Nd2 {[%clk 0:00:56]}  Qb4 {[%clk 0:00:26]} 23. a3 {[%clk 0:00:40]}  Qd6 {[%clk 0:00:18]} 24. Nf1 {[%clk 0:00:20]}  Bxf1 {[%clk 0:00:18]} 25. Rxf1 {[%clk 0:00:21]}  Rhd8 {[%clk 0:00:09]} 26. Qxh6 {[%clk 0:00:17]}  b5 {[%clk 0:00:05]} 27. Qxh3 {[%clk 0:00:11]}  Rxc1 {[%clk 0:00:03]} 28. Rxc1 {[%clk 0:00:10]}  Rg8 {[%clk 0:00:02]} 29. Qh4 {[%clk 0:00:09]} 1-0


[Site "https://www.chess.com"]

[Event "Titled Tuesday Blitz August 09 Early 2022"]
[White "Lima, Kleyton Alcantara"]
[Black "Aradhya, Garg"]
[WhiteFideId "22718397"]
[BlackFideId "25006746"]
[WhiteElo "1951"]
[BlackElo "2203"]
[Result "1-0"]
[Round "02"]
[TimeControl "180+1"]
[Date "2022.08.09"]
[WhiteClock "0:01:41"]
[BlackClock "0:00:32"]

1. e4 {[%clk 0:03:00]}  e5 {[%clk 0:02:59]} 2. Nf3 {[%clk 0:03:00]}  Nc6 {[%clk 0:02:59]} 3. d4 {[%clk 0:03:00]}  exd4 {[%clk 0:02:59]} 4. Nxd4 {[%clk 0:03:01]}  Nf6 {[%clk 0:02:59]} 5. Nxc6 {[%clk 0:03:01]}  bxc6 {[%clk 0:03:00]} 6. e5 {[%clk 0:03:02]}  Qe7 {[%clk 0:03:00]} 7. Qe2 {[%clk 0:03:01]}  Nd5 {[%clk 0:02:58]} 8. c4 {[%clk 0:03:01]}  Nb6 {[%clk 0:02:55]} 9. Nc3 {[%clk 0:03:00]}  Qe6 {[%clk 0:02:55]} 10. Qe4 {[%clk 0:02:57]}  d5 {[%clk 0:02:55]} 11. exd6 {[%clk 0:02:47]}  cxd6 {[%clk 0:02:49]} 12. Bd3 {[%clk 0:02:47]}  d5 {[%clk 0:02:45]} 13. cxd5 {[%clk 0:02:35]}  cxd5 {[%clk 0:02:46]} 14. Bb5+ {[%clk 0:02:31]}  Bd7 {[%clk 0:02:44]} 15. Qxe6+ {[%clk 0:02:30]}  fxe6 {[%clk 0:02:43]} 16. Bg5 {[%clk 0:02:24]}  Bb4 {[%clk 0:02:33]} 17. Bxd7+ {[%clk 0:02:21]}  Kxd7 {[%clk 0:02:33]} 18. Rc1 {[%clk 0:02:19]}  Na4 {[%clk 0:02:24]} 19. Bd2 {[%clk 0:02:18]}  Nxb2 {[%clk 0:01:54]} 20. Rb1 {[%clk 0:02:16]}  Nd3+ {[%clk 0:01:46]} 21. Ke2 {[%clk 0:02:15]}  Bxc3 {[%clk 0:01:31]} 22. Bxc3 {[%clk 0:02:11]}  Nf4+ {[%clk 0:01:21]} 23. Kf3 {[%clk 0:02:11]}  Rhf8 {[%clk 0:01:03]} 24. Bxg7 {[%clk 0:02:11]}  Rf7 {[%clk 0:00:47]} 25. Rb7+ {[%clk 0:02:07]}  Ke8 {[%clk 0:00:47]} 26. Rxf7 {[%clk 0:02:07]}  Kxf7 {[%clk 0:00:48]} 27. Kxf4 {[%clk 0:02:07]}  Kxg7 {[%clk 0:00:48]} 28. Ke5 {[%clk 0:02:07]}  Kf7 {[%clk 0:00:48]} 29. Rb1 {[%clk 0:02:06]}  Re8 {[%clk 0:00:45]} 30. Rb7+ {[%clk 0:02:03]}  Re7 {[%clk 0:00:44]} 31. Rb3 {[%clk 0:01:59]}  Rc7 {[%clk 0:00:42]} 32. Rf3+ {[%clk 0:01:55]}  Ke7 {[%clk 0:00:41]} 33. Rf6 {[%clk 0:01:52]}  Rc6 {[%clk 0:00:37]} 34. Rh6 {[%clk 0:01:52]}  Ra6 {[%clk 0:00:38]} 35. Rxh7+ {[%clk 0:01:49]}  Kd8 {[%clk 0:00:38]} 36. f4 {[%clk 0:01:41]}  Rxa2 {[%clk 0:00:36]} 37. Kxe6 {[%clk 0:01:42]}  d4 {[%clk 0:00:32]} 38. Rd7+ {[%clk 0:01:40]}  Ke8 {[%clk 0:00:32]} 39. Rxd4 {[%clk 0:01:41]} 1-0


[Site "https://www.chess.com"]

[Event "Titled Tuesday Blitz August 09 Early 2022"]
[White "Livaic, Leon"]
[Black "Sychev, Klementy"]
[WhiteFideId "14531534"]
[BlackFideId "4114060"]
[WhiteElo "2540"]
[BlackElo "2564"]
[Result "1-0"]
[Round "02"]
[TimeControl "180+1"]
[Date "2022.08.09"]
[WhiteClock "0:00:10"]
[BlackClock "0:00:01"]

1. d4 {[%clk 0:03:00]}  Nf6 {[%clk 0:02:55]} 2. c4 {[%clk 0:03:00]}  g6 {[%clk 0:02:56]} 3. Nc3 {[%clk 0:03:01]}  d5 {[%clk 0:02:56]} 4. cxd5 {[%clk 0:02:53]}  Nxd5 {[%clk 0:02:56]} 5. e4 {[%clk 0:02:54]}  Nxc3 {[%clk 0:02:56]} 6. bxc3 {[%clk 0:02:55]}  Bg7 {[%clk 0:02:56]} 7. Bc4 {[%clk 0:02:50]}  c5 {[%clk 0:02:48]} 8. Ne2 {[%clk 0:02:49]}  O-O {[%clk 0:02:49]} 9. Be3 {[%clk 0:02:49]}  Nc6 {[%clk 0:02:48]} 10. h4 {[%clk 0:02:49]}  cxd4 {[%clk 0:02:42]} 11. cxd4 {[%clk 0:02:49]}  Qa5+ {[%clk 0:02:43]} 12. Kf1 {[%clk 0:02:48]}  h5 {[%clk 0:02:41]} 13. f3 {[%clk 0:02:43]}  Rd8 {[%clk 0:02:31]} 14. Qb3 {[%clk 0:02:37]}  e6 {[%clk 0:02:30]} 15. Rd1 {[%clk 0:02:23]}  Rb8 {[%clk 0:02:30]} 16. Qb5 {[%clk 0:02:01]}  Qxb5 {[%clk 0:01:54]} 17. Bxb5 {[%clk 0:02:01]}  a6 {[%clk 0:01:55]} 18. Bxc6 {[%clk 0:01:55]}  bxc6 {[%clk 0:01:56]} 19. Kf2 {[%clk 0:01:21]}  a5 {[%clk 0:01:45]} 20. Bg5 {[%clk 0:01:11]}  Rd7 {[%clk 0:01:37]} 21. Rb1 {[%clk 0:00:59]}  Rdb7 {[%clk 0:01:35]} 22. Rxb7 {[%clk 0:00:55]}  Rxb7 {[%clk 0:01:36]} 23. Rc1 {[%clk 0:00:47]}  Rb2 {[%clk 0:01:34]} 24. Rxc6 {[%clk 0:00:35]}  Bb7 {[%clk 0:01:33]} 25. Rd6 {[%clk 0:00:34]}  Rxa2 {[%clk 0:01:22]} 26. Ke3 {[%clk 0:00:21]}  Ra3+ {[%clk 0:01:21]} 27. Kd2 {[%clk 0:00:20]}  Ra2+ {[%clk 0:01:14]} 28. Ke3 {[%clk 0:00:20]}  Ra3+ {[%clk 0:00:48]} 29. Kd2 {[%clk 0:00:20]}  Ra2+ {[%clk 0:00:48]} 30. Kd3 {[%clk 0:00:21]}  Ra3+ {[%clk 0:00:46]} 31. Nc3 {[%clk 0:00:21]}  f6 {[%clk 0:00:13]} 32. Rd8+ {[%clk 0:00:17]}  Kh7 {[%clk 0:00:08]} 33. Bc1 {[%clk 0:00:09]}  Ra1 {[%clk 0:00:07]} 34. Kc2 {[%clk 0:00:09]}  a4 {[%clk 0:00:02]} 35. Kb2 {[%clk 0:00:09]}  Rxc1 {[%clk 0:00:01]} 36. Kxc1 {[%clk 0:00:10]} 1-0


[Site "https://www.chess.com"]

[Event "Titled Tuesday Blitz August 09 Early 2022"]
[White "Machidon, Cristi"]
[Black "Andreikin, Dmitry"]
[WhiteFideId "13904590"]
[BlackFideId "4158814"]
[WhiteElo "2312"]
[BlackElo "2736"]
[Result "0-1"]
[Round "02"]
[TimeControl "180+1"]
[Date "2022.08.09"]
[WhiteClock "0:00:13"]
[BlackClock "0:00:54"]

1. d4 {[%clk 0:03:00]}  Nf6 {[%clk 0:02:59]} 2. c4 {[%clk 0:03:00]}  g6 {[%clk 0:02:59]} 3. Nc3 {[%clk 0:03:00]}  Bg7 {[%clk 0:03:00]} 4. Nf3 {[%clk 0:02:59]}  O-O {[%clk 0:02:57]} 5. g3 {[%clk 0:02:59]}  b6 {[%clk 0:02:55]} 6. Bg2 {[%clk 0:02:59]}  Bb7 {[%clk 0:02:56]} 7. O-O {[%clk 0:02:59]}  Ne4 {[%clk 0:02:56]} 8. Qc2 {[%clk 0:02:29]}  Nxc3 {[%clk 0:02:54]} 9. bxc3 {[%clk 0:02:30]}  Nc6 {[%clk 0:02:51]} 10. e4 {[%clk 0:02:29]}  Ba6 {[%clk 0:02:49]} 11. Qe2 {[%clk 0:02:14]}  e5 {[%clk 0:02:46]} 12. Be3 {[%clk 0:02:07]}  Re8 {[%clk 0:02:41]} 13. d5 {[%clk 0:01:57]}  Na5 {[%clk 0:02:40]} 14. Nd2 {[%clk 0:01:57]}  Rc8 {[%clk 0:02:39]} 15. Rfd1 {[%clk 0:01:40]}  c6 {[%clk 0:02:38]} 16. d6 {[%clk 0:01:36]}  Re6 {[%clk 0:02:38]} 17. Nb3 {[%clk 0:01:32]}  Nxc4 {[%clk 0:02:36]} 18. Bc1 {[%clk 0:01:27]}  Qf8 {[%clk 0:02:28]} 19. Bh3 {[%clk 0:01:24]}  Rxd6 {[%clk 0:02:27]} 20. Bg5 {[%clk 0:01:13]}  h6 {[%clk 0:02:20]} 21. Rxd6 {[%clk 0:01:11]}  Qxd6 {[%clk 0:02:13]} 22. Rd1 {[%clk 0:01:11]}  Qf8 {[%clk 0:01:45]} 23. Bc1 {[%clk 0:00:55]}  d6 {[%clk 0:01:19]} 24. Bxc8 {[%clk 0:00:55]}  Qxc8 {[%clk 0:01:20]} 25. Qf3 {[%clk 0:00:44]}  Qe6 {[%clk 0:01:20]} 26. Kg2 {[%clk 0:00:41]}  Bb5 {[%clk 0:01:17]} 27. h3 {[%clk 0:00:38]}  a5 {[%clk 0:01:15]} 28. Qg4 {[%clk 0:00:36]}  Bf8 {[%clk 0:01:06]} 29. Qxe6 {[%clk 0:00:35]}  fxe6 {[%clk 0:01:07]} 30. Nd2 {[%clk 0:00:30]}  a4 {[%clk 0:01:05]} 31. Nxc4 {[%clk 0:00:29]}  Bxc4 {[%clk 0:01:06]} 32. a3 {[%clk 0:00:28]}  d5 {[%clk 0:01:05]} 33. Kf3 {[%clk 0:00:26]}  Kf7 {[%clk 0:01:02]} 34. g4 {[%clk 0:00:22]}  b5 {[%clk 0:01:00]} 35. Re1 {[%clk 0:00:19]}  Kf6 {[%clk 0:00:59]} 36. Rd1 {[%clk 0:00:18]}  Bb3 {[%clk 0:00:58]} 37. Rd2 {[%clk 0:00:17]}  h5 {[%clk 0:00:55]} 38. gxh5 {[%clk 0:00:14]}  gxh5 {[%clk 0:00:56]} 39. Kg3 {[%clk 0:00:13]}  Bh6 {[%clk 0:00:54]} 0-1


[Site "https://www.chess.com"]

[Event "Titled Tuesday Blitz August 09 Early 2022"]
[White "Maiorov, Nikita"]
[Black "Donchenko, Alexander"]
[WhiteFideId "13501720"]
[BlackFideId "24603295"]
[WhiteElo "2409"]
[BlackElo "2572"]
[Result "1/2-1/2"]
[Round "02"]
[TimeControl "180+1"]
[Date "2022.08.09"]
[WhiteClock "0:00:11"]
[BlackClock "0:00:23"]

1. d4 {[%clk 0:03:00]}  Nf6 {[%clk 0:02:59]} 2. c4 {[%clk 0:03:00]}  g6 {[%clk 0:03:00]} 3. Nc3 {[%clk 0:02:57]}  Bg7 {[%clk 0:03:00]} 4. e4 {[%clk 0:02:56]}  d6 {[%clk 0:03:00]} 5. Nf3 {[%clk 0:02:56]}  O-O {[%clk 0:03:00]} 6. h3 {[%clk 0:02:55]}  Na6 {[%clk 0:02:55]} 7. Bg5 {[%clk 0:02:49]}  h6 {[%clk 0:02:55]} 8. Be3 {[%clk 0:02:49]}  c5 {[%clk 0:02:52]} 9. Be2 {[%clk 0:02:41]}  cxd4 {[%clk 0:02:49]} 10. Nxd4 {[%clk 0:02:41]}  Nc5 {[%clk 0:02:50]} 11. Qc2 {[%clk 0:02:40]}  Bd7 {[%clk 0:02:46]} 12. O-O {[%clk 0:02:37]}  Rc8 {[%clk 0:02:46]} 13. Rad1 {[%clk 0:02:36]}  a6 {[%clk 0:02:44]} 14. Qb1 {[%clk 0:02:35]}  Qc7 {[%clk 0:02:40]} 15. Rc1 {[%clk 0:02:25]}  Qb8 {[%clk 0:02:39]} 16. Rfd1 {[%clk 0:02:21]}  Rfd8 {[%clk 0:02:25]} 17. b4 {[%clk 0:02:19]}  Na4 {[%clk 0:02:23]} 18. Nxa4 {[%clk 0:02:12]}  Bxa4 {[%clk 0:02:24]} 19. Rd2 {[%clk 0:02:07]}  Be8 {[%clk 0:02:22]} 20. Bf1 {[%clk 0:01:53]}  Nd7 {[%clk 0:02:19]} 21. Nb3 {[%clk 0:01:40]}  Ne5 {[%clk 0:02:14]} 22. Bb6 {[%clk 0:01:38]}  Rd7 {[%clk 0:02:13]} 23. Bd4 {[%clk 0:01:28]}  Rdd8 {[%clk 0:02:10]} 24. Qb2 {[%clk 0:01:24]}  Bf6 {[%clk 0:01:56]} 25. f4 {[%clk 0:00:49]}  Nd7 {[%clk 0:01:55]} 26. Rcd1 {[%clk 0:00:42]}  Qc7 {[%clk 0:01:40]} 27. a3 {[%clk 0:00:41]}  Bxd4+ {[%clk 0:01:38]} 28. Qxd4 {[%clk 0:00:40]}  Nf8 {[%clk 0:01:38]} 29. Qe3 {[%clk 0:00:39]}  Ba4 {[%clk 0:01:37]} 30. Re1 {[%clk 0:00:34]}  Bxb3 {[%clk 0:01:34]} 31. Qxb3 {[%clk 0:00:34]}  Nd7 {[%clk 0:01:33]} 32. Qe3 {[%clk 0:00:33]}  Kg7 {[%clk 0:01:32]} 33. Red1 {[%clk 0:00:31]}  Nf8 {[%clk 0:01:24]} 34. e5 {[%clk 0:00:31]}  dxe5 {[%clk 0:01:20]} 35. Qxe5+ {[%clk 0:00:30]}  Qxe5 {[%clk 0:01:20]} 36. fxe5 {[%clk 0:00:30]}  Rxd2 {[%clk 0:01:13]} 37. Rxd2 {[%clk 0:00:30]}  Ne6 {[%clk 0:01:14]} 38. Kf2 {[%clk 0:00:26]}  Kf8 {[%clk 0:01:13]} 39. c5 {[%clk 0:00:25]}  Ke8 {[%clk 0:01:08]} 40. Bc4 {[%clk 0:00:24]}  Rd8 {[%clk 0:01:08]} 41. Rxd8+ {[%clk 0:00:23]}  Nxd8 {[%clk 0:01:09]} 42. Bd5 {[%clk 0:00:22]}  Kd7 {[%clk 0:01:01]} 43. Ke3 {[%clk 0:00:20]}  Kc7 {[%clk 0:00:57]} 44. Kd4 {[%clk 0:00:19]}  Kd7 {[%clk 0:00:45]} 45. a4 {[%clk 0:00:17]}  Kc7 {[%clk 0:00:37]} 46. Kc4 {[%clk 0:00:15]}  Kd7 {[%clk 0:00:26]} 47. b5 {[%clk 0:00:14]}  axb5+ {[%clk 0:00:25]} 48. axb5 {[%clk 0:00:14]}  Kc7 {[%clk 0:00:24]} 49. Kd4 {[%clk 0:00:14]}  b6 {[%clk 0:00:24]} 50. c6 {[%clk 0:00:13]}  Kc8 {[%clk 0:00:22]} 51. Bb3 {[%clk 0:00:12]}  Kc7 {[%clk 0:00:23]} 52. Ke4 {[%clk 0:00:13]}  Kc8 {[%clk 0:00:21]} 53. g3 {[%clk 0:00:13]}  Kc7 {[%clk 0:00:21]} 54. h4 {[%clk 0:00:13]}  Kc8 {[%clk 0:00:20]} 55. Kf4 {[%clk 0:00:13]}  Kc7 {[%clk 0:00:20]} 56. g4 {[%clk 0:00:13]}  Ne6+ {[%clk 0:00:19]} 57. Bxe6 {[%clk 0:00:11]}  fxe6 {[%clk 0:00:20]} 58. Ke4 {[%clk 0:00:11]}  Kc8 {[%clk 0:00:20]} 59. Kf4 {[%clk 0:00:10]}  Kc7 {[%clk 0:00:21]} 60. Ke4 {[%clk 0:00:10]}  Kc8 {[%clk 0:00:21]} 61. Ke3 {[%clk 0:00:10]}  Kc7 {[%clk 0:00:21]} 62. Kf4 {[%clk 0:00:10]}  Kc8 {[%clk 0:00:22]} 63. Ke4 {[%clk 0:00:10]}  Kc7 {[%clk 0:00:22]} 64. Kf4 {[%clk 0:00:10]}  Kc8 {[%clk 0:00:23]} 65. Ke4 {[%clk 0:00:10]}  Kc7 {[%clk 0:00:23]} 66. Kf4 {[%clk 0:00:11]} 1/2-1/2


[Site "https://www.chess.com"]